bitfinex/quotes_BTCUSD_20220307
["timestamp","ask_amount","ask_price","bid_price","bid_amount"]
[1646642310936,0.0011,37939.0,37930.0,0.07382958]
[1646642311135,0.0011,37939.0,37932.0,0.29198056]
[1646642311339,0.0011,37939.0,37935.0,0.20085771]
[1646642311537,0.0011,37939.0,37936.0,0.012832]
[1646642312135,0.0011,37939.0,37931.0,0.01421489]
[1646642312587,0.0011,37939.0,37932.0,0.012833]
[1646642313086,0.0011,37939.0,37932.0,0.43576575]
[1646642313285,0.0011,37939.0,37932.0,0.24875543]
[1646642313487,0.0011,37939.0,37936.0,0.00102442]
[1646642315489,0.0011,37939.0,37933.0,0.012832]
[1646642315890,0.0011,37939.0,37934.0,0.0001845]
[1646642316128,0.0011,37939.0,37935.0,0.012833]
[1646642316329,0.0011,37939.0,37935.0,0.312833]
[1646642316531,0.0011,37939.0,37938.0,0.24216105]
[1646642316730,0.0011,37939.0,37938.0,0.25498905]
[1646642316932,0.0033,37942.0,37939.0,0.012825]
[1646642316933,0.00199571,37942.0,37939.0,0.012825]
[1646642317132,0.00020429,37940.0,37939.0,0.012825]
[1646642317332,0.01330429,37943.0,37939.0,0.439155]
[1646642317531,0.00301696,37949.0,37942.0,1.22633]
[1646642317532,0.01617696,37949.0,37942.0,1.22633]
[1646642317731,0.00301696,37949.0,37943.0,0.339147]
[1646642317930,0.00301696,37949.0,37943.0,0.53991409]
[1646642318233,0.01553318,37955.0,37947.0,1.22633]
[1646642318438,0.0011,37970.0,37954.0,0.15]
[1646642318633,0.0011,37975.0,37949.0,1.22633]
[1646642318634,0.0044,37977.0,37960.0,1.2]
[1646642318835,0.26249203,37976.0,37964.0,0.15]
[1646642319034,0.0044,37977.0,37968.0,0.02633]
[1646642319234,0.12601117,37983.0,37972.0,0.14]
[1646642319235,0.02799836,37983.0,37972.0,0.14]
[1646642319432,0.036,37984.0,37973.0,0.312744]
[1646642319630,0.036,37984.0,37973.0,0.012744]
[1646642319884,0.0011,37978.0,37968.0,0.06175]
[1646642320086,0.394786,37976.0,37968.0,0.01315]
[1646642320284,0.09801281,37976.0,37968.0,0.01315]
[1646642320481,0.09801281,37976.0,37969.0,0.012755]
[1646642320682,0.02095151,37977.0,37969.0,0.012755]
[1646642320880,0.0011,37978.0,37969.0,0.012755]
[1646642321088,0.0011,37978.0,37972.0,0.07083471]
[1646642321284,0.0011,37978.0,37973.0,0.012748]
[1646642321483,0.0011,37978.0,37968.0,0.48047763]
[1646642321784,0.0011,37978.0,37969.0,0.012749]
[1646642321981,0.00021478,37977.0,37968.0,0.48047763]
[1646642322181,0.00021478,37977.0,37968.0,0.18047763]
[1646642322383,0.28883396,37975.0,37974.0,0.61288163]
[1646642322583,0.74949696,37975.0,37974.0,0.61288163]
[1646642322785,1.04949696,37975.0,37974.0,0.61288163]
[1646642322986,1.04949696,37975.0,37960.0,0.20062974]
[1646642322987,0.03756508,37974.0,37960.0,0.20062974]
[1646642323186,0.02633,37972.0,37956.0,0.20062974]
[1646642323383,0.09801281,37971.0,37965.0,0.21609022]
[1646642323647,0.05,37973.0,37966.0,0.312763]
[1646642323844,0.05,37973.0,37967.0,0.01276]
[1646642324244,0.0011,37978.0,37966.0,0.3]
[1646642324448,0.00021479,37971.0,37967.0,0.012756]
[1646642324644,0.00021479,37971.0,37970.0,0.2100227]
[1646642324846,0.00021479,37971.0,37970.0,0.2227797]
[1646642325047,0.00021479,37971.0,37970.0,0.5491097]
[1646642325248,0.0011,37978.0,37970.0,0.5491097]
[1646642325448,0.036,37984.0,37972.0,0.02633]
[1646642325648,0.036,37984.0,37983.0,0.54664987]
[1646642325846,0.036,37984.0,37983.0,0.78439577]
[1646642326045,0.036,37984.0,37983.0,0.012728]
[1646642326449,0.394786,37983.0,37966.0,0.7202]
[1646642326650,0.02633,37981.0,37964.0,0.0486]
[1646642326845,0.760647,37982.0,37955.0,0.9795]
[1646642326846,0.0803393,37979.0,37960.0,0.20060563]
[1646642327048,0.065887,37974.0,37966.0,0.38638731]
[1646642327484,0.3,37973.0,37966.0,0.38638731]
[1646642327684,0.05,37973.0,37966.0,0.38638731]
[1646642327883,0.05,37973.0,37966.0,0.18427991]
[1646642328083,0.00016623,37972.0,37959.0,0.21776563]
[1646642328285,0.00016623,37972.0,37963.0,0.14]
[1646642328483,0.00016623,37972.0,37964.0,0.012765]
[1646642328685,0.00016623,37972.0,37960.0,0.012768]
[1646642328884,0.415876,37973.0,37963.0,0.17115206]
[1646642329086,0.115876,37973.0,37964.0,0.012765]
[1646642329284,0.0001662,37970.0,37964.0,0.012765]
[1646642329488,0.18734448,37970.0,37957.0,0.01315]
[1646642329690,0.131778,37968.0,37957.0,0.01315]
[1646642329887,0.131778,37968.0,37958.0,0.012775]
[1646642329888,0.3,37967.0,37958.0,0.012775]
[1646642330088,0.3,37967.0,37957.0,0.01315]
[1646642330089,0.469716,37966.0,37957.0,0.01315]
[1646642330292,0.469716,37966.0,37956.0,0.00194051]
[1646642330293,0.228364,37962.0,37956.0,0.00194051]
[1646642330488,0.2619861,37959.0,37956.0,0.00194051]
[1646642330686,0.460696,37958.0,37949.0,0.19999729]
[1646642330886,0.43,37957.0,37950.0,0.012796]
[1646642331128,0.48,37957.0,37950.0,0.007796]
[1646642331329,0.231821,37964.0,37950.0,0.007796]
[1646642331540,0.466042,37974.0,37950.0,0.007796]
[1646642331541,0.09801281,37971.0,37964.0,0.18622205]
[1646642331731,0.09801281,37971.0,37966.0,0.02633]
[1646642331929,0.20170114,37980.0,37967.0,0.007767]
[1646642332129,0.02923,37982.0,37967.0,0.334097]
[1646642332335,0.02923,37982.0,37969.0,0.02633]
[1646642332531,0.02923,37982.0,37970.0,0.007754]
[1646642332732,0.02923,37982.0,37974.0,0.14]
[1646642332733,0.00016605,37976.0,37974.0,0.14]
[1646642332933,0.00016605,37976.0,37975.0,0.14]
[1646642333130,0.18577557,37976.0,37969.0,0.007755]
[1646642333732,0.38953175,37976.0,37969.0,0.007755]
[1646642333934,0.38953175,37976.0,37967.0,0.007764]
[1646642333935,0.00016605,37974.0,37967.0,0.007764]
[1646642334337,0.394769,37973.0,37966.0,0.00093157]
[1646642334534,0.18812755,37969.0,37966.0,0.00093157]
[1646642334784,0.05,37969.0,37966.0,0.00093157]
[1646642334988,0.131772,37971.0,37966.0,0.00093157]
[1646642335186,0.00022338,37969.0,37966.0,0.00093157]
[1646642335586,0.06610838,37969.0,37966.0,0.00093157]
[1646642335786,0.394769,37968.0,37966.0,0.00093157]
[1646642335984,0.17747558,37967.0,37966.0,0.00093157]
[1646642336185,0.20375823,37967.0,37966.0,0.00093157]
[1646642336384,0.23602372,37967.0,37966.0,0.00093157]
[1646642337286,0.28602372,37967.0,37966.0,0.00093157]
[1646642337487,0.4472254,37967.0,37966.0,0.00093157]
[1646642337885,0.28602372,37967.0,37966.0,0.00093157]
[1646642338090,0.25974107,37967.0,37966.0,0.00093157]
[1646642338286,0.25974107,37967.0,37966.0,0.00870157]
[1646642338287,0.05,37967.0,37966.0,0.00870157]
[1646642338523,0.05,37967.0,37960.0,0.30185749]
[1646642338524,0.0270437,37973.0,37967.0,0.5232901]
[1646642338728,0.09801281,37975.0,37967.0,0.5232901]
[1646642338925,0.00022338,37968.0,37967.0,0.5232901]
[1646642339124,0.18490691,37968.0,37967.0,0.5232901]
[1646642339723,0.18468353,37968.0,37967.0,0.5232901]
[1646642340326,0.23468353,37968.0,37967.0,0.5232901]
[1646642340526,0.62945253,37968.0,37967.0,0.5232901]
[1646642340724,0.75586311,37968.0,37967.0,0.5232901]
[1646642340925,0.35779437,37968.0,37967.0,0.5232901]
[1646642341125,0.23468353,37968.0,37967.0,0.5232901]
[1646642341526,0.39311562,37968.0,37967.0,0.5232901]
[1646642341726,0.23468353,37968.0,37967.0,0.5232901]
[1646642342127,0.05,37968.0,37967.0,0.5232901]
[1646642342582,0.00019726,37969.0,37967.0,0.5232901]
[1646642342978,0.00019726,37969.0,37968.0,0.00090376]
[1646642343181,0.00019726,37969.0,37967.0,0.5232901]
[1646642343377,0.18299735,37970.0,37967.0,0.5232901]
[1646642343578,0.18318873,37970.0,37967.0,0.5232901]
[1646642343779,0.19724449,37970.0,37967.0,0.5232901]
[1646642344580,0.19705311,37970.0,37967.0,0.5232901]
[1646642344783,0.19724449,37970.0,37967.0,0.5232901]
[1646642345181,0.444769,37969.0,37967.0,0.5232901]
[1646642345384,0.05,37969.0,37967.0,0.5232901]
[1646642345782,0.18318873,37970.0,37967.0,0.5232901]
[1646642345783,0.24701939,37970.0,37967.0,0.5232901]
[1646642346030,0.2331903,37970.0,37967.0,0.5232901]
[1646642346933,0.23299735,37970.0,37967.0,0.5232901]
[1646642347331,0.394769,37969.0,37967.0,0.5232901]
[1646642347533,0.61840709,37969.0,37967.0,0.5232901]
[1646642347936,0.6,37967.0,37962.0,0.003]
[1646642348137,0.01184548,37965.0,37962.0,0.003]
[1646642348337,0.02633,37962.0,37947.0,0.3]
[1646642348646,0.17531896,37955.0,37950.0,0.25017903]
[1646642348834,0.01162803,37960.0,37950.0,0.25017903]
[1646642349033,0.01181029,37961.0,37951.0,0.307799]
[1646642349233,0.065901,37960.0,37952.0,0.1868167]
[1646642349433,0.115901,37960.0,37952.0,0.1868167]
[1646642349635,0.00019413,37958.0,37950.0,0.25017903]
[1646642350485,0.115901,37960.0,37950.0,0.25017903]
[1646642350683,0.115901,37960.0,37952.0,0.17260431]
[1646642350684,0.05,37956.0,37952.0,0.17260431]
[1646642350881,0.05019396,37956.0,37952.0,0.17260431]
[1646642351085,0.00019396,37956.0,37952.0,0.17260431]
[1646642351282,0.01267806,37956.0,37952.0,0.17260431]
[1646642351684,0.065897,37954.0,37952.0,0.17260431]
[1646642352482,0.065897,37954.0,37952.0,0.2384866]
[1646642352682,0.065897,37954.0,37953.0,0.3]
[1646642352883,0.01369903,37958.0,37953.0,0.3]
[1646642352884,0.05,37958.0,37953.0,0.3]
[1646642353087,0.01572042,37966.0,37955.0,0.01302695]
[1646642353283,0.00077578,37961.0,37955.0,0.31302695]
[1646642353738,0.00077578,37961.0,37959.0,0.38821289]
[1646642353937,0.00077578,37961.0,37959.0,0.22837863]
[1646642354140,0.23529114,37969.0,37955.0,0.3]
[1646642354141,0.26162114,37969.0,37955.0,0.3]
[1646642354339,0.00019389,37962.0,37955.0,0.1]
[1646642355140,0.06608189,37962.0,37960.0,0.19229626]
[1646642355339,0.197703,37964.0,37960.0,0.19229626]
[1646642355541,0.02299972,37970.0,37961.0,0.32633]
[1646642355542,0.20058413,37970.0,37961.0,0.32633]
[1646642355746,0.00077545,37966.0,37962.0,1.48246694]
[1646642355939,0.00077545,37966.0,37963.0,0.32633]
[1646642356342,0.00077545,37966.0,37965.0,0.16633]
[1646642356540,0.131724,37978.0,37966.0,1.22633]
[1646642356740,0.20930262,37980.0,37968.0,0.16664741]
[1646642356941,0.20930262,37980.0,37967.0,0.4]
[1646642356942,0.00077542,37972.0,37969.0,0.3]
[1646642357408,0.00077542,37972.0,37967.0,0.4]
[1646642357707,0.131732,37978.0,37967.0,0.0857]
[1646642357907,0.16724697,37968.0,37967.0,0.3857]
[1646642358108,0.16724697,37968.0,37967.0,0.1158413]
[1646642358310,0.05,37977.0,37967.0,0.1158413]
[1646642358510,0.05,37977.0,37963.0,0.04148898]
[1646642358708,0.05,37977.0,37971.0,0.1913575]
[1646642358909,0.05,37977.0,37975.0,0.14]
[1646642359107,0.05,37977.0,37976.0,0.14]
[1646642359308,0.23614958,37977.0,37976.0,0.14]
[1646642360008,0.05,37977.0,37976.0,0.14]
[1646642360612,0.05016547,37978.0,37976.0,0.14]
[1646642360812,0.05016547,37978.0,37977.0,0.14]
[1646642361231,0.00016547,37978.0,37977.0,0.14]
[1646642361429,0.065857,37981.0,37977.0,0.14]
[1646642361627,0.065857,37981.0,37975.0,0.22210801]
[1646642361628,0.036,37984.0,37980.0,0.14]
[1646642361827,0.036,37984.0,37975.0,0.16084102]
[1646642362430,0.17953635,37980.0,37971.0,0.52651382]
[1646642362632,0.17953635,37980.0,37975.0,0.14]
[1646642362833,0.22953635,37980.0,37979.0,0.14]
[1646642363037,0.22953635,37980.0,37966.0,0.1]
[1646642363038,0.394774,37979.0,37967.0,0.01315]
[1646642363233,0.25586635,37980.0,37967.0,0.01315]
[1646642363437,0.17433457,37974.0,37967.0,0.01315]
[1646642363634,0.17433457,37974.0,37967.0,0.18334001]
[1646642364035,0.00022276,37972.0,37967.0,0.18334001]
[1646642364535,0.00022276,37972.0,37965.0,0.06182868]
[1646642364978,0.17433457,37974.0,37963.0,0.3]
[1646642365179,0.00022338,37970.0,37963.0,0.3]
[1646642365377,0.00022338,37970.0,37962.0,0.1]
[1646642365577,0.00022338,37970.0,37964.0,0.16737242]
[1646642365981,0.00022338,37970.0,37964.0,0.48316178]
[1646642366178,0.17433457,37974.0,37964.0,0.48316178]
[1646642366378,0.17433457,37974.0,37965.0,0.3]
[1646642366580,0.16955216,37974.0,37964.0,0.48316178]
[1646642366981,0.16955216,37974.0,37964.0,0.49691575]
[1646642367378,0.16955216,37974.0,37968.0,0.14]
[1646642367578,0.16955216,37974.0,37972.0,0.14]
[1646642367779,0.16955216,37974.0,37973.0,0.14]
[1646642372679,0.36179234,37974.0,37973.0,0.14]
[1646642372881,0.16955216,37974.0,37973.0,0.14]
[1646642374681,0.16885055,37974.0,37973.0,0.14]
[1646642375082,0.16885055,37974.0,37966.0,0.27918369]
[1646642376130,0.00021724,37972.0,37966.0,0.27918369]
[1646642376329,0.16406779,37974.0,37966.0,0.27918369]
[1646642376731,0.1706605,37977.0,37966.0,0.27918369]
[1646642376732,0.20102019,37968.0,37966.0,0.27918369]
[1646642376931,0.1706605,37977.0,37969.0,0.5731963]
[1646642377132,0.31998858,37978.0,37969.0,0.5731963]
[1646642377133,0.065872,37978.0,37969.0,0.5731963]
[1646642377331,0.115872,37978.0,37969.0,0.5731963]
[1646642377930,0.21381875,37973.0,37969.0,0.5731963]
[1646642378131,0.13401281,37984.0,37976.0,0.46750787]
[1646642378132,0.05,37981.0,37976.0,0.46750787]
[1646642378337,0.036,37984.0,37976.0,0.28561307]
[1646642379034,0.16958999,37978.0,37976.0,0.28561307]
[1646642379232,0.16958999,37978.0,37972.0,0.06153976]
[1646642379533,0.16958999,37978.0,37972.0,0.0486]
[1646642379790,0.21958999,37978.0,37969.0,0.5731963]
[1646642379985,0.394774,37977.0,37973.0,0.14]
[1646642380188,0.05,37978.0,37976.0,0.14]
[1646642380388,0.05,37978.0,37977.0,0.14]
[1646642380787,0.036,37984.0,37977.0,0.14]
[1646642380788,0.03557171,37984.0,37977.0,0.14]
[1646642380985,0.00021794,37979.0,37974.0,0.28165689]
[1646642381185,0.00021794,37979.0,37978.0,0.14]
[1646642381603,0.00021794,37979.0,37978.0,0.19954995]
[1646642381788,0.03557171,37984.0,37978.0,0.49954995]
[1646642381987,0.03057171,37984.0,37978.0,0.35954995]
[1646642382189,0.0002161,37980.0,37978.0,0.35954995]
[1646642382387,0.0002161,37980.0,37979.0,0.30470021]
[1646642382988,0.03057171,37984.0,37979.0,0.30470021]
[1646642383189,0.03057171,37984.0,37979.0,0.16470021]
[1646642383389,0.0002161,37981.0,37979.0,0.16470021]
[1646642383629,0.0002161,37981.0,37980.0,0.14]
[1646642384233,0.18734368,37984.0,37980.0,0.14]
[1646642384531,0.0002161,37982.0,37979.0,0.16470021]
[1646642384830,0.0002161,37982.0,37981.0,0.14]
[1646642385432,0.03047171,37984.0,37981.0,0.14]
[1646642385632,0.23518861,37983.0,37972.0,0.28534911]
[1646642385837,0.00019201,37983.0,37975.0,0.05526332]
[1646642386034,0.00019201,37983.0,37978.0,0.2233602]
[1646642386634,0.03047171,37984.0,37978.0,0.2233602]
[1646642386838,0.00019201,37982.0,37978.0,0.2233602]
[1646642387034,0.00019201,37982.0,37981.0,0.14]
[1646642387894,0.03047171,37984.0,37981.0,0.14]
[1646642388095,0.00019201,37983.0,37974.0,0.3]
[1646642388693,0.02566372,37984.0,37975.0,0.9]
[1646642388895,0.02566372,37984.0,37983.0,0.26170186]
[1646642389096,0.02566372,37984.0,37983.0,0.46366812]
[1646642389295,0.01,37989.0,37984.0,1.2]
[1646642389501,0.01,37989.0,37985.0,0.3]
[1646642390096,0.01,37989.0,37988.0,0.14]
[1646642390495,0.01014648,37989.0,37988.0,0.14]
[1646642390896,0.0011,37998.0,37988.0,0.14]
[1646642390897,0.02743,38002.0,37990.0,1.2]
[1646642391139,0.02743,38002.0,37992.0,0.1235161]
[1646642391140,0.0011,38002.0,37992.0,0.1235161]
[1646642391737,0.0011,38002.0,37993.0,0.32633]
[1646642391950,0.0011,38002.0,37998.0,0.21563493]
[1646642392540,0.0011,38002.0,37995.0,0.3]
[1646642392739,0.0011,38002.0,37998.0,0.0600841]
[1646642392939,0.0011,38002.0,37995.0,0.3]
[1646642393139,0.0011,38002.0,37994.0,0.49822928]
[1646642393340,0.0011,38002.0,37995.0,0.3]
[1646642394142,0.01132375,37999.0,37995.0,0.3]
[1646642394787,0.01132375,37999.0,37996.0,0.06445981]
[1646642394988,0.0111,37999.0,37996.0,0.06445981]
[1646642395386,0.01132375,37999.0,37996.0,0.06445981]
[1646642395586,0.01132375,37999.0,37997.0,0.3]
[1646642395985,0.00632375,37999.0,37997.0,0.32633]
[1646642396285,0.0061,37999.0,37997.0,0.02633]
[1646642396492,0.00089485,38006.0,38000.0,1.2]
[1646642396688,0.00089485,38006.0,38002.0,0.02633]
[1646642396885,0.00089485,38006.0,38001.0,0.71832247]
[1646642396886,0.00089485,38006.0,38001.0,0.88351023]
[1646642397085,0.00089485,38006.0,38001.0,0.28675899]
[1646642397289,0.00089485,38006.0,38002.0,0.3486]
[1646642397487,0.0022,38007.0,38002.0,0.0486]
[1646642397693,0.00022004,38005.0,38002.0,0.0486]
[1646642398750,0.002,38007.0,38002.0,0.0486]
[1646642398952,0.00022004,38005.0,38002.0,0.0486]
[1646642399150,0.00022004,38005.0,37996.0,0.2452849]
[1646642399351,0.00022004,38005.0,37995.0,0.0486]
[1646642399552,0.00022004,38005.0,38000.0,0.21649363]
[1646642399752,0.002,38007.0,38000.0,0.21649363]
[1646642400155,0.00022004,38004.0,38000.0,0.21649363]
[1646642400455,0.00022004,38004.0,38003.0,0.14]
[1646642400654,0.00022004,38004.0,37998.0,0.3]
[1646642400853,0.00022004,38004.0,38002.0,0.06151142]
[1646642401057,0.0008,38010.0,37999.0,0.6]
[1646642401256,0.0008,38010.0,38000.0,0.3]
[1646642401556,0.00021138,38003.0,38001.0,0.20788298]
[1646642402380,0.0008,38010.0,37999.0,0.1]
[1646642402585,0.00021138,38004.0,38003.0,0.2819669]
[1646642402879,0.00021138,38004.0,37999.0,0.3]
[1646642403081,0.00021138,38004.0,37999.0,0.1]
[1646642403280,0.18268957,38011.0,38003.0,0.16675533]
[1646642403781,0.18268957,38011.0,37998.0,0.20043083]
[1646642403982,0.18268957,38011.0,37996.0,0.50043083]
[1646642404284,0.18268957,38011.0,37995.0,0.20043083]
[1646642404285,0.02603,38007.0,37995.0,0.20043083]
[1646642404484,0.420804,38004.0,37995.0,0.20043083]
[1646642404683,0.40245778,38001.0,37995.0,0.20043083]
[1646642404886,0.55081752,38000.0,37991.0,0.22193162]
[1646642405086,0.25604352,38000.0,37991.0,0.15909536]
[1646642405284,0.05,37999.0,37991.0,0.15909536]
[1646642405686,0.15,38000.0,37991.0,0.15909536]
[1646642406035,0.1,38005.0,37997.0,0.19742671]
[1646642406238,0.1,38005.0,37999.0,0.26890554]
[1646642406239,0.05,38005.0,37999.0,0.26890554]
[1646642406536,0.1,38007.0,37999.0,0.26890554]
[1646642406537,0.21969462,38003.0,37999.0,0.26890554]
[1646642406837,0.26969462,38003.0,37999.0,0.26890554]
[1646642407039,0.21969462,38003.0,37997.0,0.19742671]
[1646642407237,0.21969462,38003.0,37999.0,0.00016513]
[1646642407641,0.1,38009.0,37999.0,0.00016513]
[1646642407839,0.05,38007.0,37999.0,0.00016513]
[1646642408037,0.15,38009.0,37999.0,0.00016513]
[1646642408242,0.15,38011.0,37997.0,0.19742671]
[1646642408437,0.02633,38010.0,38001.0,0.00016317]
[1646642408838,0.18101281,38006.0,38001.0,0.00016317]
[1646642409037,0.23101281,38006.0,38001.0,0.00016317]
[1646642409238,0.05,38011.0,38001.0,0.00016317]
[1646642409440,0.05,38011.0,38000.0,0.29081511]
[1646642409441,0.28738666,38011.0,38000.0,0.29081511]
[1646642409638,0.23738666,38011.0,38004.0,0.15861993]
[1646642409891,0.00131257,38012.0,38004.0,0.15861993]
[1646642410293,0.17058833,38009.0,38004.0,0.15861993]
[1646642410788,0.17058833,38009.0,38000.0,0.29081511]
[1646642410988,0.17058833,38009.0,38005.0,0.00016315]
[1646642411190,0.394774,38008.0,38005.0,0.00016315]
[1646642411788,0.394774,38006.0,38005.0,0.00016315]
[1646642411989,0.2662362,38005.0,37996.0,0.21926096]
[1646642412189,0.2662362,38005.0,37995.0,0.003]
[1646642412190,0.186469,38000.0,37995.0,0.003]
[1646642412891,0.2662362,38005.0,37989.0,0.36280183]
[1646642413289,0.05,38005.0,37998.0,0.00094957]
[1646642413534,0.1,38007.0,37998.0,0.00094957]
[1646642413734,0.09801281,38010.0,37998.0,0.00094957]
[1646642413735,0.09801281,38011.0,37998.0,0.00094957]
[1646642413934,0.16673023,38009.0,37998.0,0.00094957]
[1646642414334,0.17397475,38008.0,37998.0,0.28249362]
[1646642414534,0.394774,38007.0,38002.0,0.00016361]
[1646642414734,0.394774,38006.0,38002.0,0.00016361]
[1646642414934,0.394774,38005.0,38002.0,0.00016361]
[1646642415335,0.394674,38005.0,38002.0,0.00016361]
[1646642415539,0.394674,38005.0,37998.0,0.00094957]
[1646642415735,0.1973083,38002.0,37998.0,0.00094957]
[1646642416152,0.394757,38001.0,37998.0,0.00094957]
[1646642416538,0.0486,38000.0,37998.0,0.00094957]
[1646642416741,0.544757,37999.0,37998.0,9.57e-06]
[1646642416937,0.593357,37999.0,37998.0,0.00017309]
[1646642417136,0.79136981,37999.0,37998.0,0.00017309]
[1646642418085,0.79136981,37999.0,37998.0,9.57e-06]
[1646642418883,0.02633,37997.0,37980.0,0.3]
[1646642419082,0.15,37993.0,37985.0,0.17600282]
[1646642419280,0.443357,37992.0,37977.0,0.3]
[1646642419682,0.19110606,37988.0,37980.0,0.23836124]
[1646642419883,0.394757,37987.0,37980.0,0.23836124]
[1646642420085,0.394757,37987.0,37977.0,0.3]
[1646642420283,0.23970606,37988.0,37980.0,0.19215212]
[1646642420483,0.394757,37987.0,37980.0,0.19215212]
[1646642420685,0.23970606,37988.0,37980.0,0.19215212]
[1646642420686,0.42410496,37988.0,37980.0,0.19215212]
[1646642420883,0.0486,37988.0,37980.0,0.19215212]
[1646642421341,0.0436,37988.0,37980.0,0.19215212]
[1646642421838,0.0436,37988.0,37980.0,0.44729936]
[1646642422839,0.0436,37988.0,37982.0,0.00020001]
[1646642423039,0.394757,37989.0,37982.0,0.00020001]
[1646642423438,0.05222802,37990.0,37982.0,0.00020001]
[1646642423640,0.394757,37989.0,37982.0,0.00020001]
[1646642423838,0.35531107,37991.0,37980.0,0.49729936]
[1646642424039,0.394757,37990.0,37986.0,0.28144336]
[1646642424238,0.394757,37990.0,37980.0,0.24215212]
[1646642424239,0.494757,37990.0,37984.0,0.0002]
[1646642424441,0.19208551,37985.0,37984.0,0.0002]
[1646642424641,0.58684251,37985.0,37984.0,0.0002]
[1646642425087,0.58684251,37985.0,37976.0,0.18487698]
[1646642425285,0.58684251,37985.0,37983.0,0.00020001]
[1646642425286,0.19208551,37985.0,37983.0,0.00020001]
[1646642425487,0.394757,37984.0,37983.0,0.00020001]
[1646642426386,0.19408551,37985.0,37979.0,0.002]
[1646642426586,0.19408551,37985.0,37982.0,0.00020001]
[1646642426587,0.394757,37984.0,37982.0,0.00020001]
[1646642427386,0.389757,37984.0,37982.0,0.00020001]
[1646642427586,0.389757,37984.0,37978.0,0.22202024]
[1646642427785,0.19208551,37985.0,37978.0,0.22202024]
[1646642427786,0.19208551,37985.0,37981.0,0.00017752]
[1646642428086,0.394764,37984.0,37983.0,0.0020741]
[1646642428539,0.543364,37984.0,37983.0,0.0020741]
[1646642428736,0.543364,37984.0,37966.0,0.01315]
[1646642428737,0.02633,37983.0,37966.0,0.01315]
[1646642428937,0.02633,37981.0,37966.0,0.01315]
[1646642429136,0.394764,37974.0,37966.0,0.01315]
[1646642429437,0.73143683,37975.0,37974.0,0.17814285]
[1646642429634,0.55639894,37975.0,37974.0,0.17814285]
[1646642430733,0.394773,37975.0,37974.0,0.17814285]
[1646642432986,0.0486,37980.0,37974.0,0.17814285]
[1646642433185,0.394773,37979.0,37974.0,0.17814285]
[1646642433586,0.694773,37979.0,37974.0,0.17814285]
[1646642433788,0.694773,37979.0,37975.0,0.00019961]
[1646642433987,0.394773,37979.0,37975.0,0.00019961]
[1646642434394,0.87977692,37993.0,37977.0,0.7]
[1646642434395,0.09401281,37983.0,37977.0,0.7]
[1646642434687,0.5,37991.0,37975.0,0.30019961]
[1646642434891,0.21653,37992.0,37975.0,0.3]
[1646642435085,0.21653,37992.0,37978.0,0.00019959]
[1646642435286,0.1552586,37989.0,37982.0,0.47297698]
[1646642436137,0.1552586,37989.0,37984.0,0.00017711]
[1646642436338,0.394773,37988.0,37984.0,0.00017711]
[1646642436835,0.39466216,37988.0,37984.0,0.00017711]
[1646642437334,0.394741,37987.0,37984.0,0.00017711]
[1646642438338,0.394741,37987.0,37983.0,0.00188452]
[1646642438536,0.394741,37987.0,37984.0,0.00017711]
[1646642439640,0.20475779,37986.0,37983.0,0.00188452]
[1646642439892,0.394741,37985.0,37984.0,0.00015971]
[1646642440897,0.394741,37985.0,37983.0,0.00188452]
[1646642441096,0.394741,37985.0,37983.0,0.00204423]
[1646642441896,0.48875381,37985.0,37983.0,0.00204423]
[1646642442096,0.48875381,37985.0,37983.0,0.00188452]
[1646642442300,0.48875381,37985.0,37982.0,1.424e-05]
[1646642442301,1.1986,37984.0,37982.0,1.424e-05]
[1646642442501,1.1986,37984.0,37966.0,0.01315]
[1646642442502,2.07664432,37983.0,37966.0,0.01315]
[1646642442697,0.18727897,37970.0,37966.0,0.01315]
[1646642442900,0.63061997,37970.0,37966.0,0.01315]
[1646642443098,0.96660745,37970.0,37966.0,0.01315]
[1646642443297,1.11660745,37970.0,37966.0,0.01315]
[1646642444144,0.92932848,37970.0,37966.0,0.01315]
[1646642444839,0.68735381,37970.0,37966.0,0.01315]
[1646642445038,0.68735381,37970.0,37958.0,0.3]
[1646642445238,0.68735381,37970.0,37962.0,0.20548135]
[1646642445541,0.443341,37970.0,37963.0,0.3]
[1646642445738,0.443341,37970.0,37965.0,0.26024087]
[1646642446138,0.443341,37970.0,37962.0,0.20548135]
[1646642446139,0.438341,37970.0,37962.0,0.20548135]
[1646642446340,0.53235381,37970.0,37953.0,0.3]
[1646642446538,0.63235381,37970.0,37953.0,0.3]
[1646642446746,0.68235381,37970.0,37953.0,0.3]
[1646642446942,0.68235381,37970.0,37951.0,0.01]
[1646642447288,0.68235381,37970.0,37968.0,0.00019885]
[1646642448087,0.68235381,37970.0,37960.0,0.21916622]
[1646642448287,0.68235381,37970.0,37968.0,0.00019885]
[1646642449297,0.68235381,37970.0,37961.0,0.22430301]
[1646642449493,0.53235381,37970.0,37968.0,0.00019885]
[1646642449891,0.438341,37970.0,37968.0,0.00019885]
[1646642450191,0.53235381,37970.0,37968.0,0.00019885]
[1646642450391,0.53235381,37970.0,37960.0,0.21916622]
[1646642450591,0.53235381,37970.0,37968.0,0.00019885]
[1646642451038,0.53235381,37970.0,37969.0,1.2984195]
[1646642451237,0.63235381,37970.0,37969.0,1.2984195]
[1646642453141,0.09401281,37977.0,37969.0,1.2984195]
[1646642453341,0.389778,37976.0,37969.0,1.2984195]
[1646642453941,0.19525411,37975.0,37969.0,1.2984195]
[1646642454144,0.394772,37971.0,37969.0,1.2984195]
[1646642454542,0.53878481,37971.0,37969.0,1.2984195]
[1646642454789,0.494772,37970.0,37969.0,1.2984195]
[1646642455389,0.74965307,37970.0,37969.0,1.2984195]
[1646642455889,0.84366588,37970.0,37969.0,1.2984195]
[1646642456892,0.84366588,37970.0,37969.0,0.29013019]
[1646642457108,0.84366588,37970.0,37952.0,0.4673]
[1646642457109,0.06591,37963.0,37952.0,0.4673]
[1646642457291,0.06591,37963.0,37949.0,0.9357]
[1646642457292,0.443372,37962.0,37949.0,0.9357]
[1646642457493,0.493372,37962.0,37949.0,0.3]
[1646642457692,0.444772,37960.0,37946.0,0.36610758]
[1646642457890,0.71903514,37960.0,37952.0,0.20442042]
[1646642458942,0.444772,37960.0,37952.0,0.20442042]